[Event "Early-Titled-Tuesday-Blitz-April-02-2024"]
[Site "Chess.com"]
[Date "2024.04.02"]
[Round "8"]
[White "MyDream003"]
[Black "jcibarra"]
[Result "1/2-1/2"]
[WhiteElo "2841"]
[BlackElo "2972"]
[TimeControl "180+1"]
[EndTime "9:31:53 PDT"]
[Termination "Game drawn - insufficient material"]

1. e4 {[%clk 0:03:00.9]} 1... c5 {[%clk 0:03:00]} 2. Nf3 {[%clk 0:03:01.1]} 2...
e6 {[%clk 0:03:00.6]} 3. d4 {[%clk 0:02:59.7]} 3... cxd4 {[%clk 0:03:01.5]} 4.
Nxd4 {[%clk 0:03:00]} 4... Bc5 {[%clk 0:03:02.2]} 5. Nb3 {[%clk 0:02:57.9]} 5...
Bb6 {[%clk 0:03:02.7]} 6. Nc3 {[%clk 0:02:57.3]} 6... Ne7 {[%clk 0:03:03.1]} 7.
Bd3 {[%clk 0:02:54.9]} 7... O-O {[%clk 0:03:03.5]} 8. Qe2 {[%clk 0:02:53.3]}
8... f5 {[%clk 0:03:04.1]} 9. e5 {[%clk 0:02:50.7]} 9... f4 {[%clk 0:03:00.4]}
10. Qg4 {[%clk 0:02:36.6]} 10... Nbc6 {[%clk 0:02:09.5]} 11. Bxf4 {[%clk
0:02:29.7]} 11... Bxf2+ {[%clk 0:02:00]} 12. Kxf2 {[%clk 0:02:30.6]} 12... Nxe5
{[%clk 0:02:00.4]} 13. Qh4 {[%clk 0:02:09.4]} 13... Nxd3+ {[%clk 0:01:55.1]} 14.
cxd3 {[%clk 0:02:09.6]} 14... e5 {[%clk 0:01:53.6]} 15. Nd5 {[%clk 0:01:34]}
15... Nxd5 {[%clk 0:01:25.6]} 16. Qxd8 {[%clk 0:01:34.9]} 16... Rxd8 {[%clk
0:01:25.9]} 17. Bxe5 {[%clk 0:01:35.4]} 17... d6 {[%clk 0:01:26.3]} 18. Bd4
{[%clk 0:01:27.6]} 18... Bf5 {[%clk 0:01:24.7]} 19. Rhd1 {[%clk 0:01:24.7]}
19... Nb4 {[%clk 0:01:24.4]} 20. Kg1 {[%clk 0:01:22.1]} 20... Nxd3 {[%clk
0:01:16.9]} 21. Rd2 {[%clk 0:01:20.9]} 21... a5 {[%clk 0:01:14.7]} 22. Bc3
{[%clk 0:01:19]} 22... a4 {[%clk 0:01:12.9]} 23. Nd4 {[%clk 0:01:18.8]} 23...
Bg6 {[%clk 0:01:12.8]} 24. Ne6 {[%clk 0:01:08.7]} 24... Rd7 {[%clk 0:01:13]} 25.
Rad1 {[%clk 0:01:07.4]} 25... Re8 {[%clk 0:01:05]} 26. Ng5 {[%clk 0:00:50.5]}
26... Nf4 {[%clk 0:00:51.3]} 27. Rxd6 {[%clk 0:00:33.4]} 27... Rde7 {[%clk
0:00:42.6]} 28. Rd7 {[%clk 0:00:23.3]} 28... Ne2+ {[%clk 0:00:33.7]} 29. Kf2
{[%clk 0:00:22.8]} 29... Nxc3 {[%clk 0:00:32.8]} 30. bxc3 {[%clk 0:00:23.1]}
30... Re2+ {[%clk 0:00:33.3]} 31. Kg3 {[%clk 0:00:21.8]} 31... Rxa2 {[%clk
0:00:21.3]} 32. Rxb7 {[%clk 0:00:21.4]} 32... Rc2 {[%clk 0:00:19.1]} 33. Rdd7
{[%clk 0:00:18.8]} 33... Rxc3+ {[%clk 0:00:19.3]} 34. Nf3 {[%clk 0:00:18.3]}
34... a3 {[%clk 0:00:17.2]} 35. Ra7 {[%clk 0:00:18]} 35... Kh8 {[%clk
0:00:11.7]} 36. Rxg7 {[%clk 0:00:15.5]} 36... a2 {[%clk 0:00:10.5]} 37. Rgd7
{[%clk 0:00:03.8]} 37... Bf5 {[%clk 0:00:10.5]} 38. Rf7 {[%clk 0:00:03.4]} 38...
Bg6 {[%clk 0:00:09.2]} 39. Rfd7 {[%clk 0:00:02.9]} 39... Bb1 {[%clk 0:00:09.4]}
40. Kh4 {[%clk 0:00:02.5]} 40... Rc4+ {[%clk 0:00:07.3]} 41. g4 {[%clk
0:00:02.6]} 41... Bf5 {[%clk 0:00:06.6]} 42. Rdb7 {[%clk 0:00:02.2]} 42... Rxg4+
{[%clk 0:00:06.5]} 43. Kh5 {[%clk 0:00:02.9]} 43... Rf4 {[%clk 0:00:04.9]} 44.
Nh4 {[%clk 0:00:03.4]} 44... Bb1 {[%clk 0:00:03.5]} 45. Kg5 {[%clk 0:00:02.4]}
45... Rd4 {[%clk 0:00:03.4]} 46. Nf5 {[%clk 0:00:02.6]} 46... Rg8+ {[%clk
0:00:04]} 47. Kf6 {[%clk 0:00:02.4]} 47... Bxf5 {[%clk 0:00:04.3]} 48. Kxf5
{[%clk 0:00:02.7]} 48... Rh4 {[%clk 0:00:04.9]} 49. Rxa2 {[%clk 0:00:02.4]}
49... Rf8+ {[%clk 0:00:04.2]} 50. Ke5 {[%clk 0:00:02.8]} 50... Rh5+ {[%clk
0:00:04.3]} 51. Kd4 {[%clk 0:00:03]} 51... Rh4+ {[%clk 0:00:04.2]} 52. Ke3
{[%clk 0:00:03.3]} 52... Rh6 {[%clk 0:00:03.8]} 53. Rb4 {[%clk 0:00:03]} 53...
Re6+ {[%clk 0:00:04.1]} 54. Kd3 {[%clk 0:00:03.1]} 54... Rd8+ {[%clk 0:00:03.9]}
55. Kc3 {[%clk 0:00:03.5]} 55... Rc6+ {[%clk 0:00:03.9]} 56. Rc4 {[%clk
0:00:03.4]} 56... Rxc4+ {[%clk 0:00:03.4]} 57. Kxc4 {[%clk 0:00:04.3]} 57... Kg7
{[%clk 0:00:04]} 58. Rg2+ {[%clk 0:00:03.8]} 58... Kh6 {[%clk 0:00:04.2]} 59.
Rg4 {[%clk 0:00:04.1]} 59... Kh5 {[%clk 0:00:04.5]} 60. Rf4 {[%clk 0:00:04.2]}
60... Kg5 {[%clk 0:00:04.2]} 61. Rf2 {[%clk 0:00:03.7]} 61... Kg4 {[%clk
0:00:04.4]} 62. Kc3 {[%clk 0:00:04.3]} 62... Kh3 {[%clk 0:00:04.1]} 63. Kc4
{[%clk 0:00:04.5]} 63... h5 {[%clk 0:00:04.5]} 64. Kc3 {[%clk 0:00:03.9]} 64...
h4 {[%clk 0:00:05.2]} 65. Kc4 {[%clk 0:00:03.3]} 65... Rd1 {[%clk 0:00:05.8]}
66. Kc3 {[%clk 0:00:03.2]} 66... Rh1 {[%clk 0:00:06.5]} 67. Kd3 {[%clk
0:00:03.6]} 67... Rxh2 {[%clk 0:00:07.2]} 68. Rf8 {[%clk 0:00:03.7]} 68... Ra2
{[%clk 0:00:06.5]} 69. Rg8 {[%clk 0:00:03.6]} 69... Kh2 {[%clk 0:00:06.3]} 70.
Ke3 {[%clk 0:00:03.7]} 70... h3 {[%clk 0:00:06.1]} 71. Kf3 {[%clk 0:00:04.4]}
71... Kh1 {[%clk 0:00:05.5]} 72. Rg7 {[%clk 0:00:02.8]} 72... Rg2 {[%clk
0:00:04.4]} 73. Rh7 {[%clk 0:00:02]} 73... h2 {[%clk 0:00:04.1]} 74. Ra7 {[%clk
0:00:02.1]} 74... Rg1 {[%clk 0:00:04.3]} 75. Ra2 {[%clk 0:00:01.9]} 75... Rf1+
{[%clk 0:00:04.4]} 76. Kg3 {[%clk 0:00:02.3]} 76... Rg1+ {[%clk 0:00:04.9]} 77.
Kh3 {[%clk 0:00:02.8]} 77... Rb1 {[%clk 0:00:04.4]} 78. Rxh2+ {[%clk 0:00:02.3]}
78... Kg1 {[%clk 0:00:05.1]} 79. Rg2+ {[%clk 0:00:03.2]} 79... Kf1 {[%clk
0:00:05.3]} 80. Rg6 {[%clk 0:00:04.1]} 80... Rb4 {[%clk 0:00:04.9]} 81. Kg3
{[%clk 0:00:04.3]} 81... Rb2 {[%clk 0:00:04.2]} 82. Kf4 {[%clk 0:00:04.4]} 82...
Kf2 {[%clk 0:00:04.3]} 83. Kg5 {[%clk 0:00:04.8]} 83... Kg3 {[%clk 0:00:04.2]}
84. Kf5+ {[%clk 0:00:05]} 84... Kf3 {[%clk 0:00:04.6]} 85. Ra6 {[%clk
0:00:05.9]} 85... Rb5+ {[%clk 0:00:04.6]} 86. Ke6 {[%clk 0:00:05.5]} 86... Rb4
{[%clk 0:00:05.4]} 87. Ra3+ {[%clk 0:00:05.8]} 87... Ke4 {[%clk 0:00:05.7]} 88.
Ra1 {[%clk 0:00:06.5]} 88... Rb6+ {[%clk 0:00:06]} 89. Kd7 {[%clk 0:00:06.6]}
89... Kd5 {[%clk 0:00:05.6]} 90. Rd1+ {[%clk 0:00:06.9]} 90... Ke5 {[%clk
0:00:06]} 91. Rh1 {[%clk 0:00:07.8]} 91... Rb7+ {[%clk 0:00:05.9]} 92. Kc6
{[%clk 0:00:08.1]} 92... Rg7 {[%clk 0:00:06.1]} 93. Re1+ {[%clk 0:00:08.3]}
93... Kd4 {[%clk 0:00:06.5]} 94. Rh1 {[%clk 0:00:08.9]} 94... Rg6+ {[%clk
0:00:06.2]} 95. Kb5 {[%clk 0:00:09]} 95... Rg2 {[%clk 0:00:07]} 96. Rd1+ {[%clk
0:00:09.1]} 96... Ke5 {[%clk 0:00:07.3]} 97. Rh1 {[%clk 0:00:10]} 97... Rg3
{[%clk 0:00:07.6]} 98. Kc4 {[%clk 0:00:10.4]} 98... Rf3 {[%clk 0:00:07.5]} 99.
Re1+ {[%clk 0:00:10.6]} 99... Kd6 {[%clk 0:00:07.8]} 100. Rh1 {[%clk 0:00:11.5]}
100... Rf4+ {[%clk 0:00:08.2]} 101. Kd3 {[%clk 0:00:11.9]} 101... Rf8 {[%clk
0:00:09.1]} 102. Rh6+ {[%clk 0:00:11.8]} 102... Kd5 {[%clk 0:00:09.5]} 103. Rh5+
{[%clk 0:00:12.7]} 103... Kd6 {[%clk 0:00:09.9]} 104. Kd4 {[%clk 0:00:13.6]}
104... Rf4+ {[%clk 0:00:09.9]} 105. Ke3 {[%clk 0:00:14.1]} 105... Rf6 {[%clk
0:00:10.7]} 106. Rh2 {[%clk 0:00:13.6]} 106... Kd5 {[%clk 0:00:10.6]} 107. Rh5+
{[%clk 0:00:13.4]} 107... Kc4 {[%clk 0:00:10.9]} 108. Rh4+ {[%clk 0:00:13.7]}
108... Kc3 {[%clk 0:00:11.2]} 109. Rh8 {[%clk 0:00:13.8]} 109... Re6+ {[%clk
0:00:11.5]} 110. Kf4 {[%clk 0:00:13.6]} 110... Kd3 {[%clk 0:00:11.7]} 111. Rd8+
{[%clk 0:00:13.6]} 111... Ke2 {[%clk 0:00:11.7]} 112. Ra8 {[%clk 0:00:14.5]}
112... Re7 {[%clk 0:00:11.4]} 113. Ra2+ {[%clk 0:00:14.3]} 113... Kd3 {[%clk
0:00:11.8]} 114. Ra8 {[%clk 0:00:15.2]} 114... Rf7+ {[%clk 0:00:11.8]} 115. Ke5
{[%clk 0:00:15.1]} 115... Rf1 {[%clk 0:00:12.5]} 116. Rd8+ {[%clk 0:00:14.6]}
116... Kc4 {[%clk 0:00:12.8]} 117. Ra8 {[%clk 0:00:15.5]} 117... Kc5 {[%clk
0:00:13.1]} 118. Rc8+ {[%clk 0:00:15.7]} 118... Kb6 {[%clk 0:00:13.5]} 119. Rc2
{[%clk 0:00:15.4]} 119... Rd1 {[%clk 0:00:13.3]} 120. Ke4 {[%clk 0:00:15.7]}
120... Kb5 {[%clk 0:00:13.6]} 121. Ke5 {[%clk 0:00:16]} 121... Kb4 {[%clk
0:00:13.6]} 122. Rc8 {[%clk 0:00:16.1]} 122... Rd2 {[%clk 0:00:13.6]} 123. Ke6
{[%clk 0:00:16.5]} 123... Rd3 {[%clk 0:00:13.8]} 124. Ke5 {[%clk 0:00:17]}
124... Rc3 {[%clk 0:00:14]} 125. Rxc3 {[%clk 0:00:16.5]} 125... Kxc3 {[%clk
0:00:14.9]} 1/2-1/2

[Event "Early-Titled-Tuesday-Blitz-April-02-2024"]
[Site "Chess.com"]
[Date "2024.04.02"]
[Round "9"]
[White "Sofia_Blokhin"]
[Black "KNVB"]
[Result "0-1"]
[WhiteElo "2290"]
[BlackElo "2772"]
[TimeControl "180+1"]
[EndTime "9:39:56 PDT"]
[Termination "KNVB won by resignation"]

1. d4 {[%clk 0:03:00.9]} 1... e5 {[%clk 0:02:59.3]} 2. dxe5 {[%clk 0:02:59.9]}
2... Nc6 {[%clk 0:02:59.8]} 3. Nf3 {[%clk 0:02:57]} 3... Qe7 {[%clk 0:03:00.1]}
4. Nc3 {[%clk 0:02:50.5]} 4... Nxe5 {[%clk 0:03:00.4]} 5. Nxe5 {[%clk 0:02:49]}
5... Qxe5 {[%clk 0:03:01.3]} 6. a3 {[%clk 0:02:42.6]} 6... Bc5 {[%clk
0:03:01.3]} 7. e3 {[%clk 0:02:40.5]} 7... Nf6 {[%clk 0:03:00.9]} 8. Bd3 {[%clk
0:02:39]} 8... d5 {[%clk 0:03:01]} 9. O-O {[%clk 0:02:37.4]} 9... Bg4 {[%clk
0:02:34.8]} 10. Be2 {[%clk 0:02:33.6]} 10... Bd7 {[%clk 0:02:30.8]} 11. Bd3
{[%clk 0:02:29.8]} 11... Ng4 {[%clk 0:02:12.9]} 12. h3 {[%clk 0:02:27.2]} 0-1

[Event "Early-Titled-Tuesday-Blitz-April-02-2024"]
[Site "Chess.com"]
[Date "2024.04.02"]
[Round "9"]
[White "stollenmonster"]
[Black "sonicdravise"]
[Result "1-0"]
[WhiteElo "2895"]
[BlackElo "2615"]
[TimeControl "180+1"]
[EndTime "9:40:37 PDT"]
[Termination "stollenmonster won by resignation"]

1. e4 {[%clk 0:03:00.9]} 1... c5 {[%clk 0:02:59.9]} 2. Nf3 {[%clk 0:03:00.6]}
2... Nc6 {[%clk 0:03:00.2]} 3. Nc3 {[%clk 0:02:59]} 3... d6 {[%clk 0:03:00.1]}
4. d4 {[%clk 0:02:58.8]} 4... cxd4 {[%clk 0:03:01]} 5. Nxd4 {[%clk 0:02:59.5]}
5... Nf6 {[%clk 0:03:01.9]} 6. g3 {[%clk 0:02:59.2]} 6... g6 {[%clk 0:02:59.4]}
7. Nde2 {[%clk 0:02:59.1]} 7... Bg7 {[%clk 0:02:57.7]} 8. Bg2 {[%clk 0:02:59.6]}
8... O-O {[%clk 0:02:58.1]} 9. h3 {[%clk 0:03:00]} 9... Rb8 {[%clk 0:02:55.8]}
10. a4 {[%clk 0:03:00.4]} 10... b6 {[%clk 0:02:48.7]} 11. O-O {[%clk 0:03:00.5]}
11... Bb7 {[%clk 0:02:48.8]} 12. Nd5 {[%clk 0:02:59.9]} 12... Nxd5 {[%clk
0:02:43.4]} 13. exd5 {[%clk 0:03:00.8]} 13... Ne5 {[%clk 0:02:43.9]} 14. Ra2
{[%clk 0:02:59.8]} 14... Rc8 {[%clk 0:02:42.3]} 15. b3 {[%clk 0:03:00.2]} 15...
Rc7 {[%clk 0:02:26.4]} 16. c4 {[%clk 0:03:00.1]} 16... Qa8 {[%clk 0:02:25]} 17.
Nd4 {[%clk 0:03:00.1]} 17... Rfc8 {[%clk 0:02:23.7]} 18. Re2 {[%clk 0:02:56.6]}
18... a6 {[%clk 0:02:21]} 19. f4 {[%clk 0:02:51]} 19... Nxc4 {[%clk 0:02:20.7]}
20. bxc4 {[%clk 0:02:50.7]} 20... Rxc4 {[%clk 0:02:21.4]} 21. Nc6 {[%clk
0:02:50.9]} 21... Bxc6 {[%clk 0:02:16.3]} 22. dxc6 {[%clk 0:02:49.9]} 22... Rd4
{[%clk 0:02:12.3]} 23. Qb3 {[%clk 0:02:47.3]} 23... Bf6 {[%clk 0:01:54.6]} 24.
Be3 {[%clk 0:02:40.8]} 1-0

[Event "Early-Titled-Tuesday-Blitz-April-02-2024"]
[Site "Chess.com"]
[Date "2024.04.02"]
[Round "9"]
[White "MNyuyu"]
[Black "MikeWizard"]
[Result "1-0"]
[WhiteElo "2393"]
[BlackElo "2190"]
[TimeControl "180+1"]
[EndTime "9:41:04 PDT"]
[Termination "MNyuyu won by resignation"]

1. d4 {[%clk 0:03:00.9]} 1... Nf6 {[%clk 0:02:53.6]} 2. Nf3 {[%clk 0:03:01.4]}
2... g6 {[%clk 0:02:46]} 3. Bf4 {[%clk 0:03:01.2]} 3... Bg7 {[%clk 0:02:45]} 4.
e3 {[%clk 0:03:01.9]} 4... d6 {[%clk 0:02:44.9]} 5. h3 {[%clk 0:03:02.4]} 5...
O-O {[%clk 0:02:44.5]} 6. Be2 {[%clk 0:03:03.1]} 6... Nbd7 {[%clk 0:02:44.5]} 7.
O-O {[%clk 0:03:03.7]} 7... Re8 {[%clk 0:02:44.5]} 8. c3 {[%clk 0:02:58.6]} 8...
e5 {[%clk 0:02:44.2]} 9. dxe5 {[%clk 0:02:59.2]} 9... dxe5 {[%clk 0:02:44.3]}
10. Bh2 {[%clk 0:02:59.8]} 10... c6 {[%clk 0:02:44.6]} 11. Nbd2 {[%clk
0:02:58.3]} 11... b6 {[%clk 0:02:16.6]} 12. Nc4 {[%clk 0:02:56]} 12... Nd5
{[%clk 0:02:11.5]} 13. Nd6 {[%clk 0:02:49.6]} 13... Re6 {[%clk 0:02:07.2]} 14.
Nxc8 {[%clk 0:02:44.8]} 14... Rxc8 {[%clk 0:02:07]} 15. Bc4 {[%clk 0:02:43]}
15... Rd6 {[%clk 0:02:02.2]} 16. e4 {[%clk 0:02:40.9]} 16... Ne3 {[%clk
0:01:53.9]} 17. Qxd6 {[%clk 0:02:37.9]} 17... Nxc4 {[%clk 0:01:53.9]} 18. Qd3
{[%clk 0:02:31.5]} 18... Nxb2 {[%clk 0:01:46.6]} 19. Qc2 {[%clk 0:02:17.4]}
19... Nc4 {[%clk 0:01:43.8]} 20. Rad1 {[%clk 0:02:17.6]} 20... Qe7 {[%clk
0:01:41.3]} 21. Qd3 {[%clk 0:02:15.6]} 21... b5 {[%clk 0:01:39.4]} 22. Qxd7
{[%clk 0:02:14]} 1-0

[Event "Early-Titled-Tuesday-Blitz-April-02-2024"]
[Site "Chess.com"]
[Date "2024.04.02"]
[Round "9"]
[White "zurzan"]
[Black "Mazarini41"]
[Result "1-0"]
[WhiteElo "2087"]
[BlackElo "2411"]
[TimeControl "180+1"]
[EndTime "9:41:06 PDT"]
[Termination "zurzan won by resignation"]

1. c4 {[%clk 0:03:00.9]} 1... Nf6 {[%clk 0:02:52.4]} 2. g3 {[%clk 0:03:01.8]}
2... c5 {[%clk 0:02:52.3]} 3. Bg2 {[%clk 0:03:02.5]} 3... b5 {[%clk 0:02:52.8]}
4. Bxa8 {[%clk 0:02:58.7]} 4... bxc4 {[%clk 0:02:49.3]} 5. Bg2 {[%clk
0:02:55.3]} 5... d5 {[%clk 0:02:48]} 6. Nf3 {[%clk 0:02:52]} 6... Nc6 {[%clk
0:02:48.1]} 7. O-O {[%clk 0:02:51.1]} 7... g6 {[%clk 0:02:45.8]} 8. b3 {[%clk
0:02:50.2]} 8... Bg7 {[%clk 0:02:46.7]} 9. Bb2 {[%clk 0:02:50.3]} 9... cxb3
{[%clk 0:02:36.4]} 10. axb3 {[%clk 0:02:50]} 10... O-O {[%clk 0:02:34.7]} 11.
Na3 {[%clk 0:02:47.6]} 11... Nb4 {[%clk 0:02:26.6]} 12. Nc2 {[%clk 0:02:42.3]}
12... a5 {[%clk 0:02:24.3]} 13. Nxb4 {[%clk 0:02:41.4]} 13... axb4 {[%clk
0:02:24.3]} 14. d3 {[%clk 0:02:40.1]} 14... Re8 {[%clk 0:02:18.2]} 15. Be5
{[%clk 0:02:35.7]} 15... e6 {[%clk 0:02:14.1]} 16. e4 {[%clk 0:02:23.2]} 16...
d4 {[%clk 0:02:13.1]} 17. Qc2 {[%clk 0:02:17.9]} 17... Qb6 {[%clk 0:02:11]} 18.
Rfc1 {[%clk 0:02:16.3]} 18... Nd7 {[%clk 0:02:09.3]} 19. Bxg7 {[%clk 0:02:15.3]}
19... Kxg7 {[%clk 0:02:09.2]} 20. e5 {[%clk 0:02:07.9]} 20... Ba6 {[%clk
0:02:00.2]} 21. h4 {[%clk 0:02:03.6]} 21... Qc7 {[%clk 0:01:57.6]} 22. Rxa6
{[%clk 0:01:59.3]} 1-0

[Event "Early-Titled-Tuesday-Blitz-April-02-2024"]
[Site "Chess.com"]
[Date "2024.04.02"]
[Round "9"]
[White "Refrigerator1955"]
[Black "Caracal3000"]
[Result "0-1"]
[WhiteElo "1999"]
[BlackElo "2542"]
[TimeControl "180+1"]
[EndTime "9:41:39 PDT"]
[Termination "Caracal3000 won by resignation"]

1. e4 {[%clk 0:03:00.9]} 1... c5 {[%clk 0:02:56]} 2. Nf3 {[%clk 0:03:00.3]} 2...
e6 {[%clk 0:02:56.4]} 3. Nc3 {[%clk 0:02:59.3]} 3... Nc6 {[%clk 0:02:56.5]} 4.
g3 {[%clk 0:02:58.3]} 4... g6 {[%clk 0:02:48.6]} 5. Bg2 {[%clk 0:02:57.8]} 5...
Bg7 {[%clk 0:02:49.2]} 6. O-O {[%clk 0:02:57.1]} 6... Nge7 {[%clk 0:02:49.9]} 7.
d3 {[%clk 0:02:56.5]} 7... O-O {[%clk 0:02:50.2]} 8. Be3 {[%clk 0:02:54.7]} 8...
d6 {[%clk 0:02:50.1]} 9. Nh4 {[%clk 0:02:48]} 9... e5 {[%clk 0:02:36.5]} 10. f4
{[%clk 0:02:46.8]} 10... f5 {[%clk 0:02:35]} 11. exf5 {[%clk 0:02:41.3]} 11...
Nxf5 {[%clk 0:02:35.9]} 12. Nxf5 {[%clk 0:02:40.1]} 12... Bxf5 {[%clk
0:02:34.8]} 13. Nd5 {[%clk 0:02:30.4]} 13... exf4 {[%clk 0:02:25.7]} 14. Bxf4
{[%clk 0:02:26.5]} 14... Bxb2 {[%clk 0:02:25.7]} 15. Rb1 {[%clk 0:02:24.8]}
15... Bd4+ {[%clk 0:02:24.1]} 16. Kh1 {[%clk 0:02:25.3]} 16... Qd7 {[%clk
0:02:17.4]} 17. Bh6 {[%clk 0:02:20]} 17... Bg7 {[%clk 0:02:03.3]} 18. Bxg7
{[%clk 0:02:06.2]} 18... Qxg7 {[%clk 0:02:04.2]} 19. Qd2 {[%clk 0:01:52.4]}
19... Rae8 {[%clk 0:01:55.7]} 20. c3 {[%clk 0:01:45]} 20... c4 {[%clk
0:01:45.4]} 21. dxc4 {[%clk 0:01:35.3]} 21... Bxb1 {[%clk 0:01:44.7]} 0-1

[Event "Early-Titled-Tuesday-Blitz-April-02-2024"]
[Site "Chess.com"]
[Date "2024.04.02"]
[Round "9"]
[White "ragnaroek66"]
[Black "Yan_Dyomin2010"]
[Result "0-1"]
[WhiteElo "2517"]
[BlackElo "2704"]
[TimeControl "180+1"]
[EndTime "9:41:48 PDT"]
[Termination "Yan_Dyomin2010 won on time"]

1. d4 {[%clk 0:03:00.9]} 1... Nf6 {[%clk 0:02:59.1]} 2. c4 {[%clk 0:03:00.6]}
2... g6 {[%clk 0:02:53.5]} 3. Nc3 {[%clk 0:03:00.3]} 3... d5 {[%clk 0:02:53.9]}
4. cxd5 {[%clk 0:02:53.5]} 4... Nxd5 {[%clk 0:02:54.8]} 5. e4 {[%clk 0:02:53.5]}
5... Nxc3 {[%clk 0:02:55.4]} 6. bxc3 {[%clk 0:02:54.4]} 6... Bg7 {[%clk
0:02:55.6]} 7. Nf3 {[%clk 0:02:55.1]} 7... c5 {[%clk 0:02:56.2]} 8. Bb5+ {[%clk
0:02:55.3]} 8... Bd7 {[%clk 0:02:55.4]} 9. Be2 {[%clk 0:01:16.3]} 9... O-O
{[%clk 0:02:52.4]} 10. O-O {[%clk 0:00:08.5]} 10... cxd4 {[%clk 0:02:46]} 0-1

[Event "Early-Titled-Tuesday-Blitz-April-02-2024"]
[Site "Chess.com"]
[Date "2024.04.02"]
[Round "9"]
[White "ChristianArca"]
[Black "Let_it_be_1"]
[Result "1-0"]
[WhiteElo "2669"]
[BlackElo "2556"]
[TimeControl "180+1"]
[EndTime "9:41:50 PDT"]
[Termination "ChristianArca won by resignation"]

1. d4 {[%clk 0:02:57]} 1... d5 {[%clk 0:02:59.9]} 2. Bf4 {[%clk 0:02:56.7]} 2...
e6 {[%clk 0:03:00]} 3. e3 {[%clk 0:02:57.3]} 3... Bd6 {[%clk 0:03:00.1]} 4. Nf3
{[%clk 0:02:57.4]} 4... Bxf4 {[%clk 0:02:59.8]} 5. exf4 {[%clk 0:02:58.3]} 5...
Ne7 {[%clk 0:03:00.5]} 6. Bd3 {[%clk 0:02:59]} 6... b6 {[%clk 0:03:00.8]} 7. O-O
{[%clk 0:02:59.4]} 7... Ba6 {[%clk 0:03:00.8]} 8. Bxa6 {[%clk 0:02:57.2]} 8...
Nxa6 {[%clk 0:03:00.9]} 9. c3 {[%clk 0:02:58.1]} 9... O-O {[%clk 0:02:59.1]} 10.
Nbd2 {[%clk 0:02:58.7]} 10... c5 {[%clk 0:02:56.8]} 11. Re1 {[%clk 0:02:56.7]}
11... Nb8 {[%clk 0:02:46.2]} 12. a4 {[%clk 0:02:52.8]} 12... Nbc6 {[%clk
0:02:45.7]} 13. Nb3 {[%clk 0:02:49.5]} 13... Qd6 {[%clk 0:02:42.3]} 14. Qd2
{[%clk 0:02:47.8]} 14... cxd4 {[%clk 0:02:36.7]} 15. Nbxd4 {[%clk 0:02:45.4]}
15... Nxd4 {[%clk 0:02:31]} 16. Nxd4 {[%clk 0:02:42.3]} 16... Rac8 {[%clk
0:02:12.9]} 17. a5 {[%clk 0:02:34.6]} 17... Nc6 {[%clk 0:02:06.5]} 18. axb6
{[%clk 0:02:33.1]} 18... axb6 {[%clk 0:02:05.3]} 19. Ra6 {[%clk 0:02:20.1]}
19... Na5 {[%clk 0:01:53.4]} 20. g3 {[%clk 0:02:11.1]} 20... h6 {[%clk
0:01:46.7]} 21. Ra1 {[%clk 0:02:05.8]} 21... Rfe8 {[%clk 0:01:32.2]} 22. R1xa5
{[%clk 0:02:05]} 22... e5 {[%clk 0:01:19]} 23. fxe5 {[%clk 0:02:05.9]} 23...
Rxe5 {[%clk 0:01:18.1]} 24. Ra8 {[%clk 0:02:03.2]} 1-0

[Event "Early-Titled-Tuesday-Blitz-April-02-2024"]
[Site "Chess.com"]
[Date "2024.04.02"]
[Round "9"]
[White "tortorchess"]
[Black "Misterfox120"]
[Result "0-1"]
[WhiteElo "2220"]
[BlackElo "2405"]
[TimeControl "180+1"]
[EndTime "9:42:46 PDT"]
[Termination "Misterfox120 won by resignation"]

1. d4 {[%clk 0:02:59.6]} 1... Nf6 {[%clk 0:02:54]} 2. c4 {[%clk 0:02:58.8]} 2...
a5 {[%clk 0:02:51.4]} 3. Nc3 {[%clk 0:02:57.1]} 3... b6 {[%clk 0:02:50.5]} 4.
Nf3 {[%clk 0:02:56.5]} 4... e6 {[%clk 0:02:50.7]} 5. Bg5 {[%clk 0:02:55.3]} 5...
Bb7 {[%clk 0:02:48.2]} 6. e4 {[%clk 0:02:53.2]} 6... Be7 {[%clk 0:02:46.1]} 7.
e5 {[%clk 0:02:53]} 7... Ne4 {[%clk 0:02:44.5]} 8. Nxe4 {[%clk 0:02:50.5]} 8...
Bxe4 {[%clk 0:02:45.4]} 9. Bxe7 {[%clk 0:02:42]} 9... Qxe7 {[%clk 0:02:44.9]}
10. Bd3 {[%clk 0:02:41.5]} 10... Qb4+ {[%clk 0:02:42.5]} 11. Qd2 {[%clk
0:02:35.4]} 11... Bxd3 {[%clk 0:02:42.1]} 12. Qxb4 {[%clk 0:02:28.1]} 12... axb4
{[%clk 0:02:43]} 13. b3 {[%clk 0:02:26.7]} 13... Be4 {[%clk 0:02:41.7]} 14. Rg1
{[%clk 0:02:23.8]} 14... Bxf3 {[%clk 0:02:34.9]} 15. gxf3 {[%clk 0:02:23.3]}
15... g6 {[%clk 0:02:35.8]} 16. Ke2 {[%clk 0:02:21.2]} 16... d6 {[%clk
0:02:33.8]} 17. Kd2 {[%clk 0:02:18.9]} 17... Nc6 {[%clk 0:02:01.4]} 18. exd6
{[%clk 0:02:12.1]} 18... cxd6 {[%clk 0:02:01.9]} 19. Kd3 {[%clk 0:02:10.3]}
19... O-O-O {[%clk 0:02:00.7]} 20. a3 {[%clk 0:02:08.9]} 20... Kb7 {[%clk
0:01:14.7]} 21. f4 {[%clk 0:02:00.2]} 21... bxa3 {[%clk 0:01:12.1]} 22. Rxa3
{[%clk 0:01:59.6]} 22... Ra8 {[%clk 0:01:12.5]} 23. Rga1 {[%clk 0:01:55.9]}
23... d5 {[%clk 0:01:05.2]} 24. c5 {[%clk 0:01:44.2]} 24... bxc5 {[%clk
0:00:52.4]} 25. dxc5 {[%clk 0:01:42.2]} 25... Rxa3 {[%clk 0:00:50.8]} 26. Rxa3
{[%clk 0:01:41.8]} 26... Ra8 {[%clk 0:00:51.7]} 27. Rxa8 {[%clk 0:01:41.5]}
27... Kxa8 {[%clk 0:00:52.6]} 28. Kc3 {[%clk 0:01:36.6]} 28... Kb7 {[%clk
0:00:53.5]} 29. b4 {[%clk 0:01:35.9]} 29... Ka6 {[%clk 0:00:54.4]} 0-1